[Event "Nové Hrady - Rapid A"]
[Site "Nové Hrady, Czech Republic"]
[Date "2024.08.10"]
[Round "4.5"]
[White "Valiyev, Adil"]
[Black "Rausch, Rudolf"]
[Result "1/2-1/2"]
[TimeControl "2x15min+5s"]
[WhiteFideId "23752246"]
[BlackFideId "1639455"]
[WhiteElo "1469"]
[BlackElo "1838"]

1. e4 {[%clk 00:15:07]} {[%emt 00:00:02]} g6 {[%clk 00:15:08]} {[%emt
00:00:03]} 2. d4 {[%emt 00:00:05]} d6 3. Nf3 {[%clk 00:15:08]} {[%emt
00:00:04]} Bg7 {[%clk 00:15:16]} 4. Nc3 {[%clk 00:15:12]} {[%emt 00:00:02]} Nc6
{[%clk 00:15:12]} {[%emt 00:00:09]} 5. Bb5 {[%clk 00:15:03]} {[%emt 00:00:13]}
Bd7 {[%clk 00:15:16]} 6. O-O {[%clk 00:15:05]} {[%emt 00:00:04]} a6 {[%clk
00:15:18]} {[%emt 00:00:03]} 7. Bxc6 {[%clk 00:14:51]} {[%emt 00:00:18]} Bxc6
{[%clk 00:15:20]} {[%emt 00:00:03]} 8. d5 {[%clk 00:14:54]} {[%emt 00:00:03]}
Bd7 {[%clk 00:15:21]} {[%emt 00:00:04]} 9. Be3 {[%clk 00:14:40]} {[%emt
00:00:18]} Nf6 {[%clk 00:15:23]} {[%emt 00:00:04]} 10. Qd2 {[%clk 00:14:35]}
{[%emt 00:00:10]} O-O {[%clk 00:15:15]} {[%emt 00:00:14]} 11. Bh6 {[%clk
00:14:37]} e5 {[%clk 00:14:33]} {[%emt 00:00:48]} 12. Bxg7 {[%clk 00:13:32]}
{[%emt 00:01:10]} Kxg7 {[%emt 00:00:38]} 13. Rad1 {[%emt 00:00:44]} Bg4 {[%clk
00:14:19]} {[%emt 00:00:18]} 14. Qe3 {[%clk 00:11:44]} {[%emt 00:00:42]} Nh5
{[%clk 00:14:04]} {[%emt 00:00:20]} 15. h3 {[%clk 00:11:05]} {[%emt 00:00:44]}
Bd7 {[%clk 00:13:16]} {[%emt 00:00:53]} 16. Ne2 {[%clk 00:08:26]} {[%emt
00:02:43]} Bb5 {[%clk 00:13:02]} {[%emt 00:00:20]} 17. b3 {[%clk 00:07:22]}
{[%emt 00:01:10]} Nf4 {[%clk 00:12:32]} {[%emt 00:00:34]} 18. c4 {[%clk
00:07:16]} {[%emt 00:00:11]} Nxe2+ {[%clk 00:12:32]} {[%emt 00:00:04]} 19. Qxe2
{[%clk 00:07:18]} {[%emt 00:00:04]} Bd7 {[%clk 00:12:31]} {[%emt 00:00:06]} 20.
Rd3 {[%clk 00:06:42]} {[%emt 00:00:40]} b6 {[%emt 00:01:13]} 21. Nh2 {[%clk
00:05:21]} {[%emt 00:01:14]} h5 {[%clk 00:10:34]} {[%emt 00:01:07]} 22. f4
{[%clk 00:04:31]} {[%emt 00:00:55]} exf4 {[%clk 00:09:56]} {[%emt 00:00:43]} 23.
Rxf4 {[%clk 00:03:32]} {[%emt 00:01:05]} Qe7 {[%clk 00:09:15]} {[%emt
00:00:45]} 24. Rdf3 {[%clk 00:03:21]} {[%emt 00:00:16]} f5 {[%clk 00:08:59]}
{[%emt 00:00:20]} 25. Qb2+ {[%clk 00:02:57]} {[%emt 00:00:31]} Qe5 {[%clk
00:08:58]} {[%emt 00:00:05]} 26. Qf2 {[%clk 00:01:57]} {[%emt 00:01:04]} Qa1+
{[%clk 00:08:51]} {[%emt 00:00:13]} 27. Nf1 {[%clk 00:02:00]} {[%emt 00:00:03]}
b5 {[%clk 00:08:40]} {[%emt 00:00:15]} 28. exf5 {[%clk 00:01:59]} {[%emt
00:00:06]} Bxf5 {[%clk 00:08:37]} {[%emt 00:00:07]} 29. Kh2 {[%emt 00:03:06]}
Rf7 {[%clk 00:06:02]} {[%emt 00:00:19]} 30. Ng3 {[%emt 00:01:05]} Raf8 {[%clk
00:05:02]} {[%emt 00:00:05]} 31. Nxf5+ {[%emt 00:00:32]} Rxf5 {[%clk 00:04:35]}
{[%emt 00:00:11]} 32. Rxf5 {[%clk 00:01:13]} {[%emt 00:00:06]} Rxf5 {[%clk
00:04:36]} {[%emt 00:00:04]} 33. Rxf5 {[%clk 00:01:16]} {[%emt 00:00:02]} gxf5
{[%clk 00:04:38]} {[%emt 00:00:02]} 34. cxb5 {[%clk 00:01:10]} {[%emt
00:00:11]} axb5 {[%clk 00:04:31]} {[%emt 00:00:12]} 35. Qxf5 {[%clk 00:01:11]}
{[%emt 00:00:05]} Qxa2 {[%emt 00:00:12]} 36. Qd7+ {[%emt 00:00:08]} Kf6 {[%clk
00:04:27]} 37. Qxb5 {[%emt 00:00:34]} Qc2 {[%clk 00:03:54]} {[%emt 00:00:05]}
38. Qc4 {[%emt 00:00:34]} Qb2 {[%emt 00:00:19]} 39. Kg1 {[%clk 00:01:01]}
{[%emt 00:00:17]} Qa1+ {[%clk 00:03:23]} {[%emt 00:00:24]} 40. Kh2 {[%clk
00:00:46]} {[%emt 00:00:20]} Qe5+ {[%clk 00:03:16]} {[%emt 00:00:13]} 41. Kg1
{[%clk 00:00:46]} {[%emt 00:00:04]} Qa1+ {[%clk 00:03:01]} {[%emt 00:00:20]} 42.
Kh2 {[%clk 00:00:36]} {[%emt 00:00:16]} Qe5+ {[%clk 00:03:03]} {[%emt
00:00:03]} 43. Kg1 {[%clk 00:00:40]} 1/2-1/2

[Event "Nové Hrady - Rapid A"]
[Site "Nové Hrady, Czech Republic"]
[Date "2024.08.10"]
[Round "4.6"]
[White "Rendl, Luboš"]
[Black "Polanský, Matěj"]
[Result "1-0"]
[TimeControl "2x15min+5s"]
[WhiteFideId "23750197"]
[BlackFideId "23741872"]
[WhiteElo "1848"]
[BlackElo "1520"]

1. e4 {[%clk 00:15:03]} {[%emt 00:00:07]} e5 {[%clk 00:15:06]} {[%emt
00:00:05]} 2. Nf3 {[%clk 00:15:06]} {[%emt 00:00:01]} Nc6 {[%clk 00:15:09]}
{[%emt 00:00:03]} 3. Bb5 {[%clk 00:15:08]} {[%emt 00:00:02]} Nf6 {[%clk
00:15:12]} {[%emt 00:00:02]} 4. O-O {[%clk 00:15:10]} {[%emt 00:00:04]} a6
{[%clk 00:15:05]} {[%emt 00:00:12]} 5. Bxc6 {[%clk 00:14:55]} {[%emt 00:00:20]}
dxc6 {[%clk 00:15:02]} {[%emt 00:00:08]} 6. Nxe5 {[%clk 00:14:20]} {[%emt
00:00:39]} Nxe4 {[%clk 00:14:22]} {[%emt 00:00:45]} 7. Qe2 {[%clk 00:13:58]}
{[%emt 00:00:27]} f6 {[%clk 00:12:54]} {[%emt 00:01:33]} 8. Nxc6 {[%clk
00:12:45]} {[%emt 00:01:19]} bxc6 {[%clk 00:12:56]} {[%emt 00:00:02]} 9. Qxe4+
{[%clk 00:12:47]} {[%emt 00:00:03]} Be7 {[%clk 00:12:09]} {[%emt 00:00:52]} 10.
Qxc6+ {[%clk 00:12:47]} {[%emt 00:00:05]} Bd7 {[%clk 00:12:12]} 11. Qc4 {[%clk
00:12:46]} {[%emt 00:00:08]} Qc8 {[%clk 00:10:37]} {[%emt 00:01:39]} 12. Nc3
{[%clk 00:12:18]} {[%emt 00:00:33]} Be6 {[%clk 00:10:10]} {[%emt 00:00:34]} 13.
Qe2 {[%clk 00:12:08]} {[%emt 00:00:13]} O-O {[%clk 00:09:33]} {[%emt 00:00:42]}
14. Re1 {[%clk 00:12:00]} {[%emt 00:00:14]} Kf7 {[%clk 00:08:56]} {[%emt
00:00:42]} 15. d4 {[%clk 00:11:54]} {[%emt 00:00:12]} Re8 {[%clk 00:08:37]}
{[%emt 00:00:23]} 16. Be3 {[%clk 00:10:29]} {[%emt 00:01:31]} Rb8 {[%clk
00:08:10]} {[%emt 00:00:32]} 17. d5 {[%clk 00:08:31]} {[%emt 00:02:02]} Bf5
{[%clk 00:07:37]} {[%emt 00:00:38]} 18. b3 {[%clk 00:04:59]} {[%emt 00:03:38]}
Bb4 {[%clk 00:07:00]} {[%emt 00:00:41]} 19. Qc4 {[%clk 00:04:39]} {[%emt
00:00:26]} Bd6 {[%clk 00:06:05]} {[%emt 00:00:59]} 20. Bc5 {[%clk 00:03:20]}
{[%emt 00:01:25]} Qd7 {[%clk 00:04:09]} {[%emt 00:02:01]} 21. Bxd6 {[%clk
00:03:12]} {[%emt 00:00:12]} cxd6 {[%clk 00:04:04]} {[%emt 00:00:09]} 22. Ne4
{[%clk 00:02:21]} {[%emt 00:00:56]} a5 {[%clk 00:02:55]} {[%emt 00:01:13]} 23.
c3 {[%clk 00:01:37]} {[%emt 00:00:51]} Rbc8 {[%clk 00:02:17]} {[%emt 00:00:44]}
24. Qd4 {[%clk 00:01:40]} {[%emt 00:00:01]} Bxe4 {[%clk 00:02:06]} {[%emt
00:00:16]} 25. Rxe4 {[%clk 00:01:41]} {[%emt 00:00:03]} Rxe4 {[%clk 00:01:50]}
{[%emt 00:00:21]} 26. Qxe4 {[%clk 00:01:45]} {[%emt 00:00:02]} Rxc3 {[%clk
00:01:51]} {[%emt 00:00:04]} 27. Qxh7 {[%clk 00:01:13]} {[%emt 00:00:37]} Qc8
{[%clk 00:01:27]} {[%emt 00:00:29]} 28. Qh5+ {[%clk 00:00:54]} {[%emt
00:00:23]} Kg8 {[%clk 00:01:15]} {[%emt 00:00:18]} 29. Qd1 {[%clk 00:00:23]}
{[%emt 00:00:34]} Rc5 {[%clk 00:01:11]} {[%emt 00:00:12]} 30. Qd2 {[%clk
00:00:09]} {[%emt 00:00:19]} Qf5 {[%clk 00:01:03]} {[%emt 00:00:12]} 31. Rd1
{[%clk 00:00:09]} {[%emt 00:00:05]} Rc2 {[%clk 00:01:00]} {[%emt 00:00:08]} 32.
Qe1 {[%clk 00:00:11]} {[%emt 00:00:03]} Rxa2 {[%clk 00:00:54]} {[%emt
00:00:12]} 33. h3 {[%clk 00:00:09]} {[%emt 00:00:07]} Kf8 {[%clk 00:00:40]}
{[%emt 00:00:18]} 34. Rc1 {[%clk 00:00:07]} {[%emt 00:00:07]} Rc2 {[%clk
00:00:40]} {[%emt 00:00:06]} 35. Rd1 {[%clk 00:00:08]} {[%emt 00:00:04]} Rc5
{[%clk 00:00:34]} {[%emt 00:00:11]} 36. Qd2 {[%clk 00:00:06]} {[%emt 00:00:07]}
Rc2 {[%clk 00:00:28]} {[%emt 00:00:10]} 37. Qe3 {[%clk 00:00:06]} {[%emt
00:00:05]} Rc5 {[%clk 00:00:21]} {[%emt 00:00:12]} 38. Re1 {[%clk 00:00:07]}
{[%emt 00:00:04]} Kg8 {[%clk 00:00:17]} {[%emt 00:00:09]} 39. Qe6+ {[%clk
00:00:07]} {[%emt 00:00:06]} Qxe6 {[%clk 00:00:14]} {[%emt 00:00:08]} 40. dxe6
{[%clk 00:00:10]} Kf8 {[%clk 00:00:18]} 41. e7+ {[%clk 00:00:09]} {[%emt
00:00:10]} Ke8 {[%clk 00:00:22]} 42. Re6 {[%clk 00:00:09]} {[%emt 00:00:06]}
Re5 {[%clk 00:00:17]} {[%emt 00:00:09]} 43. Rxd6 {[%clk 00:00:11]} {[%emt
00:00:03]} Kxe7 {[%clk 00:00:19]} {[%emt 00:00:03]} 44. Ra6 {[%clk 00:00:14]}
{[%emt 00:00:02]} Rb5 {[%clk 00:00:20]} {[%emt 00:00:04]} 45. Ra7+ {[%clk
00:00:16]} {[%emt 00:00:02]} Kf8 {[%clk 00:00:16]} {[%emt 00:00:09]} 46. Kh2
{[%clk 00:00:09]} {[%emt 00:00:15]} Rxb3 {[%clk 00:00:11]} {[%emt 00:00:08]} 47.
Rxa5 {[%clk 00:00:12]} {[%emt 00:00:02]} Rb2 {[%clk 00:00:15]} 48. f3 {[%clk
00:00:14]} {[%emt 00:00:03]} Kf7 {[%clk 00:00:12]} {[%emt 00:00:08]} 49. Kg3
{[%clk 00:00:17]} {[%emt 00:00:03]} Kg6 {[%clk 00:00:15]} 50. h4 {[%clk
00:00:15]} {[%emt 00:00:08]} Re2 {[%clk 00:00:08]} {[%emt 00:00:12]} 51. Kh3
{[%clk 00:00:15]} {[%emt 00:00:04]} Kh6 {[%clk 00:00:07]} {[%emt 00:00:07]} 52.
g4 {[%clk 00:00:15]} {[%emt 00:00:06]} Re1 {[%clk 00:00:11]} {[%emt 00:00:01]}
53. Kg3 {[%clk 00:00:07]} {[%emt 00:00:12]} Re3 {[%clk 00:00:08]} {[%emt
00:00:08]} 54. Kf4 {[%clk 00:00:09]} {[%emt 00:00:02]} Rb3 {[%clk 00:00:11]}
{[%emt 00:00:03]} 55. Ra8 {[%clk 00:00:06]} {[%emt 00:00:08]} Rb4+ {[%clk
00:00:13]} {[%emt 00:00:03]} 56. Kg3 {[%clk 00:00:09]} {[%emt 00:00:03]} Kg6
{[%clk 00:00:16]} {[%emt 00:00:02]} 57. h5+ {[%clk 00:00:06]} {[%emt 00:00:08]}
Kf7 {[%clk 00:00:18]} {[%emt 00:00:02]} 58. Ra7+ {[%clk 00:00:10]} Ke6 {[%clk
00:00:21]} {[%emt 00:00:03]} 59. Rxg7 {[%clk 00:00:13]} {[%emt 00:00:03]} Rb1
{[%clk 00:00:20]} {[%emt 00:00:06]} 60. h6 {[%clk 00:00:15]} {[%emt 00:00:02]}
Rg1+ {[%clk 00:00:23]} {[%emt 00:00:02]} 61. h7 {[%clk 00:00:25]} {[%emt
00:00:13]} Ra1 {[%clk 00:00:09]} {[%emt 00:00:28]} 62. Rg8 {[%clk 00:00:29]}
Rg1+ {[%clk 00:00:08]} {[%emt 00:00:10]} 63. h8=Q {[%clk 00:00:33]} Rd1 {[%clk
00:00:09]} {[%emt 00:00:05]} 64. Kf2 {[%clk 00:00:36]} Kd7 {[%clk 00:00:12]}
{[%emt 00:00:05]} 65. Rd8+ {[%clk 00:00:38]} {[%emt 00:00:03]} Kc6 {[%clk
00:00:16]} 66. Rxd1 {[%clk 00:00:41]} {[%emt 00:00:02]} Kc5 {[%clk 00:00:20]}
67. Qc8+ {[%clk 00:00:44]} {[%emt 00:00:02]} Kb6 {[%clk 00:00:16]} {[%emt
00:00:09]} 68. Rb1+ {[%clk 00:00:47]} Ka7 {[%clk 00:00:18]} {[%emt 00:00:03]}
69. Qb7# {[%clk 00:00:51]} {[%emt 00:00:02]} 1-0

[Event "Nové Hrady - Rapid A"]
[Site "Nové Hrady, Czech Republic"]
[Date "2024.08.10"]
[Round "5.1"]
[White "Hák, David"]
[Black "Steinbauer, Sebastián"]
[Result "1-0"]
[TimeControl "2x15min+5s"]
[WhiteFideId "377007"]
[BlackFideId "399272"]
[WhiteElo "2192"]
[BlackElo "2018"]

1. e4 {[%clk 00:15:05]} {[%emt 00:00:05]} e5 {[%clk 00:14:59]} {[%emt
00:00:11]} 2. Nf3 {[%clk 00:15:08]} {[%emt 00:00:02]} Nf6 {[%clk 00:15:02]}
{[%emt 00:00:02]} 3. Nxe5 {[%clk 00:15:01]} {[%emt 00:00:12]} d6 {[%clk
00:15:04]} {[%emt 00:00:04]} 4. Nf3 {[%clk 00:15:05]} Nxe4 {[%clk 00:15:09]} 5.
Nc3 {[%clk 00:15:10]} Nxc3 {[%clk 00:15:11]} {[%emt 00:00:04]} 6. dxc3 {[%clk
00:15:14]} Nc6 {[%clk 00:15:15]} 7. Be3 {[%clk 00:15:09]} {[%emt 00:00:11]} Be7
{[%clk 00:15:15]} {[%emt 00:00:06]} 8. Qd2 {[%clk 00:15:04]} {[%emt 00:00:09]}
Be6 {[%clk 00:15:19]} {[%emt 00:00:02]} 9. Bd3 {[%clk 00:15:00]} {[%emt
00:00:09]} Qd7 {[%clk 00:15:19]} {[%emt 00:00:05]} 10. h4 {[%clk 00:13:24]}
{[%emt 00:01:40]} Ne5 {[%clk 00:15:19]} {[%emt 00:00:06]} 11. Nd4 {[%clk
00:12:46]} {[%emt 00:00:43]} Nc4 {[%clk 00:15:22]} {[%emt 00:00:02]} 12. Bxc4
{[%clk 00:12:22]} {[%emt 00:00:28]} Bxc4 {[%clk 00:15:26]} {[%emt 00:00:02]} 13.
b3 {[%clk 00:12:25]} {[%emt 00:00:02]} Ba6 {[%clk 00:15:26]} {[%emt 00:00:05]}
14. O-O-O {[%clk 00:12:07]} {[%emt 00:00:22]} O-O-O {[%clk 00:15:27]} {[%emt
00:00:05]} 15. Bg5 {[%clk 00:10:44]} {[%emt 00:01:27]} Rde8 {[%clk 00:13:54]}
{[%emt 00:01:38]} 16. Rhe1 {[%clk 00:10:34]} {[%emt 00:00:15]} h6 {[%clk
00:13:48]} {[%emt 00:00:11]} 17. Rxe7 {[%clk 00:07:32]} {[%emt 00:03:06]} Rxe7
{[%clk 00:13:48]} {[%emt 00:00:06]} 18. Bxe7 {[%clk 00:07:37]} Qxe7 {[%clk
00:13:52]} {[%emt 00:00:02]} 19. Re1 {[%clk 00:07:17]} {[%emt 00:00:25]} Qxh4
{[%clk 00:13:11]} {[%emt 00:00:46]} 20. Nf5 {[%clk 00:06:21]} {[%emt 00:01:00]}
Qf6 {[%clk 00:10:03]} {[%emt 00:03:14]} 21. Ne7+ {[%clk 00:06:22]} {[%emt
00:00:04]} Kd8 {[%clk 00:09:43]} {[%emt 00:00:24]} 22. Qe3 {[%clk 00:04:35]}
{[%emt 00:01:52]} Qe6 {[%clk 00:07:09]} {[%emt 00:02:38]} 23. Qd2 {[%clk
00:04:04]} {[%emt 00:00:37]} Qf6 {[%clk 00:07:00]} {[%emt 00:00:14]} 24. Nd5
{[%clk 00:03:54]} {[%emt 00:00:15]} Qg5 {[%clk 00:06:58]} {[%emt 00:00:06]} 25.
f4 {[%clk 00:03:55]} {[%emt 00:00:05]} Qh4 {[%clk 00:05:48]} {[%emt 00:01:15]}
26. c4 {[%clk 00:03:44]} {[%emt 00:00:16]} b6 {[%clk 00:04:38]} {[%emt
00:01:16]} 27. g3 {[%clk 00:03:06]} {[%emt 00:00:42]} Qxg3 {[%clk 00:03:55]}
{[%emt 00:00:47]} 28. Nxc7 {[%clk 00:02:49]} {[%emt 00:00:23]} Kxc7 {[%clk
00:00:50]} {[%emt 00:03:11]} 29. Re7+ {[%clk 00:02:47]} {[%emt 00:00:07]} Kc8
{[%clk 00:00:53]} {[%emt 00:00:02]} 30. Qxd6 {[%clk 00:02:50]} Qg1+ {[%clk
00:00:57]} {[%emt 00:00:01]} 31. Kb2 {[%clk 00:02:54]} Qc5 {[%clk 00:01:01]}
{[%emt 00:00:03]} 32. Qd7+ {[%clk 00:02:58]} Kb8 {[%clk 00:01:05]} 33. Qxa7+
{[%clk 00:03:02]} {[%emt 00:00:02]} Kc8 {[%clk 00:01:08]} {[%emt 00:00:03]} 34.
Qa8# {[%clk 00:03:06]} 1-0

[Event "Nové Hrady - Rapid A"]
[Site "Nové Hrady, Czech Republic"]
[Date "2024.08.10"]
[Round "5.2"]
[White "Prinz, Hubert"]
[Black "Garabik, Marek"]
[Result "0-1"]
[TimeControl "2x15min+5s"]
[WhiteFideId "1639447"]
[BlackFideId "23717742"]
[WhiteElo "1986"]
[BlackElo "1933"]

1. d4 {[%clk 00:15:08]} {[%emt 00:00:03]} e6 {[%clk 00:14:59]} {[%emt
00:00:10]} 2. Nf3 {[%clk 00:15:12]} {[%emt 00:00:02]} d5 {[%clk 00:15:03]} 3.
e3 {[%clk 00:15:13]} {[%emt 00:00:05]} Nf6 {[%clk 00:15:05]} {[%emt 00:00:03]}
4. Bd3 {[%clk 00:15:16]} {[%emt 00:00:02]} Bd6 {[%clk 00:14:58]} {[%emt
00:00:12]} 5. Nbd2 {[%clk 00:15:18]} {[%emt 00:00:03]} O-O {[%clk 00:15:00]}
{[%emt 00:00:03]} 6. O-O {[%clk 00:15:21]} {[%emt 00:00:02]} c6 {[%clk
00:14:59]} {[%emt 00:00:06]} 7. c3 {[%clk 00:15:20]} {[%emt 00:00:06]} Nbd7
{[%clk 00:15:02]} {[%emt 00:00:02]} 8. e4 {[%clk 00:15:22]} {[%emt 00:00:03]}
dxe4 {[%clk 00:14:56]} {[%emt 00:00:10]} 9. Nxe4 {[%clk 00:15:26]} Nxe4 {[%clk
00:14:37]} {[%emt 00:00:26]} 10. Bxe4 {[%clk 00:15:29]} {[%emt 00:00:02]} Nf6
{[%clk 00:14:36]} {[%emt 00:00:07]} 11. Bc2 {[%clk 00:15:28]} {[%emt 00:00:05]}
b6 {[%clk 00:14:34]} {[%emt 00:00:07]} 12. Bg5 {[%clk 00:15:30]} {[%emt
00:00:03]} Bb7 {[%clk 00:14:36]} {[%emt 00:00:04]} 13. Qd3 {[%clk 00:15:31]}
{[%emt 00:00:03]} g6 {[%clk 00:14:20]} {[%emt 00:00:21]} 14. h4 {[%clk
00:14:49]} {[%emt 00:00:46]} Be7 {[%clk 00:14:23]} {[%emt 00:00:03]} 15. Bxf6
{[%clk 00:14:48]} {[%emt 00:00:06]} Bxf6 {[%emt 00:00:04]} 16. h5 {[%clk
00:14:51]} {[%emt 00:00:01]} Qd5 {[%clk 00:13:38]} {[%emt 00:00:52]} 17. hxg6
{[%clk 00:14:40]} {[%emt 00:00:15]} hxg6 {[%clk 00:13:39]} {[%emt 00:00:04]} 18.
Qe4 {[%clk 00:13:53]} {[%emt 00:00:53]} Qh5 {[%clk 00:10:48]} {[%emt 00:02:56]}
19. Qf4 {[%clk 00:11:17]} {[%emt 00:02:39]} Kg7 {[%clk 00:10:02]} {[%emt
00:00:53]} 20. Qh2 {[%clk 00:11:10]} {[%emt 00:00:11]} Rh8 {[%clk 00:08:40]}
{[%emt 00:01:28]} 21. Qxh5 {[%clk 00:10:55]} {[%emt 00:00:19]} Rxh5 {[%clk
00:08:44]} {[%emt 00:00:02]} 22. Rfe1 {[%clk 00:09:03]} {[%emt 00:01:57]} Rah8
{[%clk 00:08:38]} {[%emt 00:00:11]} 23. Kf1 {[%clk 00:09:07]} Ba6+ {[%clk
00:08:41]} {[%emt 00:00:03]} 24. Re2 {[%clk 00:08:36]} {[%emt 00:00:35]} Rh1+
{[%clk 00:08:42]} {[%emt 00:00:04]} 25. Ng1 {[%clk 00:08:40]} Rxg1+ {[%clk
00:08:08]} {[%emt 00:00:40]} 26. Kxg1 {[%clk 00:08:44]} Bxe2 {[%clk 00:08:11]}
{[%emt 00:00:03]} 27. Be4 {[%clk 00:08:30]} {[%emt 00:00:19]} c5 {[%clk
00:07:57]} {[%emt 00:00:20]} 28. dxc5 {[%clk 00:08:33]} {[%emt 00:00:02]} bxc5
{[%clk 00:07:58]} {[%emt 00:00:03]} 29. Rc1 {[%clk 00:08:22]} {[%emt 00:00:16]}
Be5 {[%clk 00:07:58]} {[%emt 00:00:06]} 30. g3 {[%clk 00:08:21]} {[%emt
00:00:06]} Ba6 {[%clk 00:07:07]} {[%emt 00:00:56]} 31. b3 {[%clk 00:07:09]}
{[%emt 00:01:17]} Rb8 {[%clk 00:06:51]} {[%emt 00:00:20]} 32. f4 {[%clk
00:06:55]} {[%emt 00:00:19]} Bf6 {[%clk 00:06:50]} {[%emt 00:00:06]} 33. c4
{[%clk 00:06:46]} {[%emt 00:00:14]} Bb7 {[%clk 00:06:53]} {[%emt 00:00:03]} 34.
Bg2 {[%clk 00:06:37]} {[%emt 00:00:14]} Bd4+ {[%clk 00:06:55]} {[%emt
00:00:04]} 35. Kf1 {[%clk 00:06:40]} Bxg2+ {[%clk 00:06:54]} {[%emt 00:00:07]}
36. Kxg2 {[%clk 00:06:44]} e5 {[%clk 00:06:54]} {[%emt 00:00:05]} 37. Kf3
{[%clk 00:06:47]} {[%emt 00:00:02]} exf4 {[%clk 00:06:58]} {[%emt 00:00:02]} 38.
gxf4 {[%clk 00:06:51]} Re8 {[%clk 00:07:02]} 39. Rd1 {[%clk 00:06:47]} {[%emt
00:00:10]} Re3+ {[%clk 00:07:05]} {[%emt 00:00:02]} 40. Kg2 {[%clk 00:06:26]}
{[%emt 00:00:27]} Re2+ {[%clk 00:07:08]} 41. Kf3 {[%clk 00:06:29]} Rxa2 {[%clk
00:07:06]} {[%emt 00:00:10]} 42. b4 {[%clk 00:06:33]} Ra3+ {[%clk 00:07:08]}
{[%emt 00:00:04]} 43. Ke4 {[%clk 00:06:37]} {[%emt 00:00:02]} Ra4 {[%clk
00:06:45]} {[%emt 00:00:28]} 44. bxc5 {[%clk 00:06:25]} {[%emt 00:00:17]} Bxc5
{[%clk 00:06:47]} {[%emt 00:00:03]} 45. Kd5 {[%clk 00:06:29]} Bf8 {[%clk
00:06:50]} {[%emt 00:00:02]} 46. Rc1 {[%clk 00:06:15]} {[%emt 00:00:19]} Ra5+
{[%clk 00:06:52]} {[%emt 00:00:03]} 47. Kd4 {[%clk 00:06:17]} {[%emt 00:00:03]}
Bc5+ {[%clk 00:06:52]} {[%emt 00:00:05]} 48. Ke4 {[%clk 00:06:20]} {[%emt
00:00:02]} f5+ {[%clk 00:06:51]} {[%emt 00:00:06]} 49. Kd3 {[%clk 00:06:22]}
{[%emt 00:00:04]} Ra3+ {[%clk 00:06:55]} 50. Kc3 {[%clk 00:06:23]} {[%emt
00:00:03]} 0-1